[Event "Swiss Youth-ch U14 2023"]
[Site "Olten"]
[Date "2023.05.28"]
[Round "5.2"]
[White "Gut, Lionel"]
[Black "Udipi, Kala Kishan"]
[Result "1-0"]
[ECO "E73"]
[WhiteElo "2054"]
[BlackElo "1904"]
[Annotator "TA"]
[PlyCount "65"]
[EventDate "2023.05.26"]
[EventType "swiss"]
[EventCountry "SUI"]
[SourceTitle "playchess.com"]
[Source "ChessBase"]
[SourceQuality "1"]
[TimeControl "5400+30"]

{[%evp 11,65,37,60,53,57,56,54,56,67,47,77,45,46,28,56,9,28,-21,-24,-53,-62,-77,-29,-26,35,-80,-91,-79,-92,-136,-68,-179,0,-6,-8,-22,0,-111,-56,-161,-64,-65,413,419,400,389,725,620,702,539,29981,1609,29997,29998,29998,29999]} 1. d4 {[%emt 0:00:02]} Nf6 {[%emt 0:00:10]} 2. c4 {[%emt 0:00:03]} g6 {[%emt 0:00:11]} 3. h4 {[%emt 0:00:44][%cal Bh2h4,Bh4h5,Bh5h6][%mdl 32]} Bg7 {[%emt 0:00:10]} 4. Nc3 {[%emt 0:00:05]} O-O {[%emt 0:00:12]} 5. e4 {[%emt 0:00:03]} d6 {[%emt 0:00:17]} 6. Be2 {[%emt 0:00:43]} e5 {[%emt 0:01:27]} 7. d5 {[%emt 0:01:09] E73: King's Indian: Averbakh Variation without 6...c5.} Na6 {[%emt 0:00:39]} 8. h5 {[%emt 0:01:49]} Nc5 {[%emt 0:01:06]} 9. h6 {[%emt 0:00:40] White is slightly better.} Bh8 {[%emt 0:00:08]} 10. Bg5 {[%emt 0:00:17]} Qd7 {[%emt 0:06:12]} 11. Rh4 {[%emt 0:13:57]} a5 {[%emt 0:16:50]} 12. Qc2 {[%emt 0:00:48] [#]} Rb8 $146 {[%emt 0:05:54]} ({Predecessor:} 12... Ne8 13. g4 f6 14. Be3 Qe7 15. Rh2 Bd7 16. O-O-O Rb8 17. f3 Na6 18. Nh3 c6 {1-0 Netusil,M (2290)-Mejzlik,V (2210) CZE-chT1W 1415 2014 (2.5)}) 13. O-O-O {[%emt 0:16:11]} (13. Nh3 $14) 13... c6 $11 {[%emt 0:10:30]} 14. dxc6 {[%emt 0:00:58]} (14. g4 {feels stronger.}) 14... bxc6 {[%emt 0:01:11]} 15. Nf3 {[%emt 0:00:47]} Qc7 {[%emt 0:01:12]} 16. Qd2 {[%emt 0:04:20]} Ne8 {[%emt 0:10:58]} (16... Qb7 $1 $17 {[%cal Od6d5] ...d5! would be deadly.} 17. Be3 Ng4 18. Bxc5 (18. Qxd6 $2 Qxb2#) 18... dxc5) 17. Be3 {[%emt 0:01:35]} Na6 {[%emt 0:05:15] [#]} (17... Qb7 $11) 18. c5 {[%emt 0:05:51]} Nxc5 $17 {[%emt 0:05:08]} 19. Bxc5 {[%emt 0:00:19]} dxc5 {[%emt 0:00:01]} 20. Bc4 {[%emt 0:01:16]} Qe7 {[%emt 0:02:41]} ({Black should try} 20... Bf6 $17 21. Rhh1 Be7) 21. g4 {[%emt 0:12:38]} (21. Rhh1 $15) 21... Be6 $2 {[%emt 0:09:34]} (21... Rb4 $1 $19 {[%cal Rb4c4]} 22. b3 Be6 23. Bxe6 Qxe6) 22. Bxe6 $11 {[%emt 0:37:15]} Qxe6 {[%emt 0:00:31]} (22... fxe6 $5 23. Rh3 $8 Rf4 $15) 23. Qd7 $1 {[%emt 0:00:00]} Qf6 {[%emt 0:02:38]} (23... Bf6 {simplifies} 24. Qxe6 fxe6 25. Rh3 Rd8) 24. Rh3 {[%emt 0:00:00] [#]} (24. Rd3 $1 $11) 24... Qf4+ $1 $17 {[%emt 0:01:00]} 25. Nd2 {[%emt 0:00:00] [#]} (25. Kc2 $1 $15) 25... Nf6 {[%emt 0:01:28]} ({Inferior is} 25... Qxf2 26. Rf3 Qh4 27. Rdf1 $11) (25... Bf6 $1 $19 {[%cal Rf6g5] White must now prevent ...Bg5.} 26. Qxc6 Bg5) 26. Qxc6 $15 {[%emt 0:00:00]} Nxg4 $2 {[%emt 0:01:24][%mdl 8192] This costs Black the game.} (26... Qxg4 $15 27. Rd3 Qf4) 27. Nd5 $18 {[%emt 0:00:00][%cal Rd5e7]} Qg5 {[%emt 0:05:56] Against Ne7+} 28. Rg3 {[%emt 0:00:00][%cal Og3g4] Rxg4! is the strong threat.} f5 {[%emt 0:08:09]} (28... Rfe8 29. f3 (29. Qxc5 $2 Rec8 $19) 29... Qxh6) 29. f3 {[%emt 0:00:00]} (29. Qxc5 $2 {loses.} Rbc8 30. Nc7 Rf7 $19) 29... Qh4 {[%emt 0:01:07] Black is weak on the light squares} 30. Rgg1 {[%emt 0:00:00]} Nf6 {[%emt 0:02:51]} 31. exf5 {[%emt 0:00:00]} ({Weaker is} 31. Qxc5 Nxd5 32. Qxd5+ Rf7 $18) (31. Qe6+ $142 Rf7 32. Rxg6+ (32. Qxe5 Nd7 $17) 32... hxg6 33. Ne7+ Kf8 34. Nxg6+ Kg8 35. Nxh4 Rb6 36. Rg1+ Ng4 37. Qxb6) 31... g5 {[%emt 0:00:38]} 32. Ne7+ {[%emt 0:00:00] Excellent horsemanship.} Kf7 {[%emt 0:00:16]} 33. Qe6+ {[%emt 0:00:00] Excellently played by Gut!   Weighted Error Value: White=0.47/Black=1.02} 1-0

[Event "Swiss Youth-ch U14 2023"]
[Site "Olten"]
[Date "2023.05.28"]
[Round "5.3"]
[White "Breyer, Philippe"]
[Black "Gut, Raphael"]
[Result "0-1"]
[ECO "B40"]
[WhiteElo "1766"]
[BlackElo "1817"]
[Annotator "NA RC"]
[PlyCount "82"]
[EventDate "2023.05.26"]
[EventType "swiss"]
[EventCountry "SUI"]
[SourceTitle "playchess.com"]
[Source "ChessBase"]
[SourceQuality "1"]
[TimeControl "5400+30"]

1. e4 {[%emt 0:00:04]} c5 {[%emt 0:00:04]} 2. Nf3 {[%emt 0:00:05]} e6 {[%emt 0:00:06]} 3. d4 {[%emt 0:00:21]} cxd4 {[%emt 0:00:13]} 4. Nxd4 {[%emt 0:00:03]} Nf6 {[%emt 0:00:16]} 5. Bd3 {[%emt 0:00:13]} Nc6 {[%emt 0:04:05]} 6. Nxc6 {[%emt 0:01:26]} bxc6 {[%emt 0:00:10]} 7. Qe2 {[%emt 0:00:54]} d5 {[%emt 0:00:34]} 8. Nd2 {[%emt 0:04:14]} Be7 {[%emt 0:02:30]} 9. c4 {[%emt 0:01:59]} O-O {[%emt 0:09:14]} 10. O-O {[%emt 0:05:36]} Nd7 {[%emt 0:01:49]} 11. f4 {[%emt 0:09:35]} Nc5 {[%emt 0:04:17]} 12. Bc2 {[%emt 0:01:18]} Ba6 {[%emt 0:09:27]} 13. Rd1 {[%emt 0:13:26]} Qb6 {[%emt 0:19:27]} 14. Kh1 {[%emt 0:01:24]} Rfd8 {[%emt 0:11:57]} 15. b3 {[%emt 0:11:43]} dxe4 {[%emt 0:02:32]} 16. Nxe4 {[%emt 0:00:43]} Rxd1+ {[%emt 0:00:07]} 17. Bxd1 {[%emt 0:00:04]} Nxe4 {[%emt 0:00:17]} 18. Qxe4 {[%emt 0:00:05]} Bf6 {[%emt 0:00:41]} 19. Rb1 {[%emt 0:01:22]} Rd8 {[%emt 0:13:23]} 20. Be3 {[%emt 0:11:44]} (20. Bf3 $5 {[%cal Rc1e3]}) 20... Qa5 {[%emt 0:02:55]} 21. Bc2 {[%emt 0:07:53]} g6 {[%emt 0:00:36]} 22. a4 {[%emt 0:03:49]} c5 {[%emt 0:02:09]} 23. b4 {[%emt 0:13:30]} cxb4 {[%emt 0:01:39]} 24. Bb3 {[%emt 0:00:20]} Qf5 {[%emt 0:05:00]} 25. Qxf5 {[%emt 0:00:52]} gxf5 {[%emt 0:00:13]} 26. Bxa7 {[%emt 0:00:26]} Rc8 {[%emt 0:00:52]} 27. Rc1 $17 {[%emt 0:05:06]} (27. c5 $1 $15) 27... Bb2 {[%emt 0:01:41]} 28. Rc2 {[%emt 0:00:26]} Bc3 {[%emt 0:00:02]} 29. c5 {[%emt 0:00:36]} Bd3 {[%emt 0:01:07]} 30. Rc1 {[%emt 0:00:19]} Be4 {[%emt 0:01:01]} 31. Rd1 {[%emt 0:02:46]} Kh8 {[%emt 0:01:34]} 32. Rd7 {[%emt 0:01:32]} Rg8 {[%emt 0:01:20]} 33. Kg1 {[%emt 0:01:32]} Rxg2+ {[%emt 0:01:42]} 34. Kf1 {[%emt 0:00:04]} Rb2 {[%emt 0:00:26]} 35. Bc4 {[%emt 0:00:27]} b3 {[%emt 0:00:50]} 36. Bd3 {[%emt 0:01:42]} Rd2 {[%emt 0:01:20]} 37. Rd8+ {[%emt 0:00:18]} Kg7 {[%emt 0:00:03]} 38. Bxe4 {[%emt 0:00:58]} Rxd8 {[%emt 0:00:05]} 39. Bd3 {[%emt 0:00:34]} Rxd3 {[%emt 0:00:20]} 40. c6 {[%emt 0:00:15]} Rd8 {[%emt 0:00:14]} 41. c7 {[%emt 0:00:15]} Rc8 {[%emt 0:00:02]} 0-1

[Event "Swiss Youth-ch U14 2023"]
[Site "Olten"]
[Date "2023.05.28"]
[Round "5.4"]
[White "Kanana, Ziad"]
[Black "Paholok, Adam"]
[Result "1-0"]
[ECO "C02"]
[WhiteElo "1828"]
[BlackElo "1556"]
[Annotator "NA RC"]
[PlyCount "89"]
[EventDate "2023.05.26"]
[EventType "swiss"]
[EventCountry "SUI"]
[SourceTitle "playchess.com"]
[Source "ChessBase"]
[SourceQuality "1"]
[TimeControl "5400+30"]

1. e4 {[%emt 0:00:03]} e6 {[%emt 0:08:48]} 2. d4 {[%emt 0:00:09]} d5 {[%emt 0:00:10]} 3. e5 {[%emt 0:00:03]} c5 {[%emt 0:00:03]} 4. c3 {[%emt 0:00:04]} Nc6 {[%emt 0:00:03]} 5. Nf3 {[%emt 0:00:04]} Qb6 {[%emt 0:00:12]} 6. Be2 {[%emt 0:00:05]} Bd7 {[%emt 0:00:07]} 7. O-O {[%emt 0:00:50]} cxd4 {[%emt 0:00:03]} 8. cxd4 {[%emt 0:00:09]} Nge7 {[%emt 0:00:26]} 9. Na3 {[%emt 0:00:23]} Nf5 {[%emt 0:01:16]} 10. Nc2 {[%emt 0:00:06]} Be7 {[%emt 0:00:09]} 11. Kh1 {[%emt 0:01:28] 11.Bd3 is setting a new trend.} Rc8 {[%emt 0:00:15]} 12. Bd3 {[%emt 0:03:15]} h6 {[%emt 0:00:24]} 13. b4 {[%emt 0:09:34]} a6 {[%emt 0:09:32] [#]} 14. g4 $146 {[%emt 0:06:09]} ({Predecessor:} 14. Rb1 Qc7 15. b5 axb5 16. Bd2 O-O 17. g4 Nh4 18. g5 Nxf3 19. Qxf3 Bxg5 20. Bxg5 hxg5 21. Rg1 f5 22. Rxg5 Be8 {½-½ Hoehne,V (1907)-Vodicka,M (2050) SB-2013-0-00315}) 14... Nh4 {[%emt 0:00:12]} 15. Nxh4 {[%emt 0:00:20]} Bxh4 {[%emt 0:00:20]} 16. f4 {[%emt 0:00:30]} Be7 {[%emt 0:00:04]} 17. Be3 {[%emt 0:05:30]} Na7 {[%emt 0:11:08]} 18. Qd2 {[%emt 0:07:26]} ({White should try} 18. a4 $1 $14) 18... Bb5 {[%emt 0:00:47]} 19. a4 {[%emt 0:12:38]} Bxd3 {[%emt 0:00:07]} 20. Qxd3 {[%emt 0:00:01]} Qc6 {[%emt 0:08:26]} 21. Rfc1 {[%emt 0:03:48]} Qc4 {[%emt 0:01:54]} 22. Qd2 {[%emt 0:00:37]} Qc3 {[%emt 0:00:43]} 23. Qf2 {[%emt 0:01:03]} Kd7 {[%emt 0:01:30]} 24. Ne1 {[%emt 0:11:44]} Qb3 {[%emt 0:05:59]} (24... Qxb4 $2 25. Rab1 $18 {[%mdl 64] Skewer, Deflection}) 25. Rcb1 {[%emt 0:06:33]} Qc4 {[%emt 0:00:24]} 26. Rb2 {[%emt 0:10:25]} Qc6 {[%emt 0:08:53]} 27. Nd3 {[%emt 0:02:13]} ({White should play} 27. f5) 27... Rhd8 {[%emt 0:10:36]} (27... Qc3 $16 28. Nc5+ Bxc5 29. bxc5 Rc7) 28. Nc5+ {[%emt 0:02:13]} Ke8 {[%emt 0:00:06]} 29. f5 {[%emt 0:02:57]} Bxc5 {[%emt 0:03:56]} 30. bxc5 {[%emt 0:00:28]} exf5 {[%emt 0:00:38]} 31. gxf5 {[%emt 0:01:41]} Qd7 {[%emt 0:28:49]} 32. Qf3 {[%emt 0:04:20]} Nc6 {[%emt 0:00:00]} 33. Rg2 {[%emt 0:01:50]} Ne7 {[%emt 0:00:00]} 34. e6 {[%emt 0:02:14]} fxe6 {[%emt 0:00:00]} 35. Rxg7 {[%emt 0:02:28]} Qc6 {[%emt 0:00:00]} 36. f6 {[%emt 0:00:57]} Rd7 {[%emt 0:00:00]} 37. f7+ {[%emt 0:01:00]} Kd8 {[%emt 0:00:00]} 38. f8=Q+ {[%emt 0:00:20]} Kc7 {[%emt 0:00:00]} 39. Bf4+ {[%emt 0:00:15]} e5 {[%emt 0:00:00]} 40. Bxe5+ {[%emt 0:00:07]} Rd6 {[%emt 0:00:00]} 41. Bxd6+ {[%emt 0:00:09]} Qxd6 {[%emt 0:00:00]} 42. cxd6+ {[%emt 0:00:07]} Kb8 {[%emt 0:00:00]} 43. dxe7 {[%emt 0:00:26]} b5 {[%emt 0:00:00]} 44. Qxc8+ {[%emt 0:00:08]} Kxc8 {[%emt 0:00:00]} 45. e8=Q# {[%emt 0:06:10]} 1-0

[Event "Swiss Youth-ch U14 2023"]
[Site "Olten"]
[Date "2023.05.28"]
[Round "5.5"]
[White "Stoll, Arturo"]
[Black "Haas, Anthony"]
[Result "1/2-1/2"]
[ECO "D35"]
[WhiteElo "1607"]
[BlackElo "1530"]
[Annotator "NA RC"]
[PlyCount "64"]
[EventDate "2023.05.26"]
[EventType "swiss"]
[EventCountry "SUI"]
[SourceTitle "playchess.com"]
[Source "ChessBase"]
[SourceQuality "1"]
[TimeControl "5400+30"]

1. d4 {[%emt 0:00:04]} d5 {[%emt 0:00:04]} 2. c4 {[%emt 0:00:12]} e6 {[%emt 0:00:03]} 3. Nc3 {[%emt 0:00:06]} Nf6 {[%emt 0:00:05]} 4. cxd5 {[%emt 0:01:27]} exd5 {[%emt 0:00:18]} 5. Bg5 {[%emt 0:00:19]} Be7 {[%emt 0:00:15]} 6. e3 {[%emt 0:00:12]} O-O {[%emt 0:00:18]} 7. Bd3 {[%emt 0:00:08]} h6 {[%emt 0:04:41]} 8. Bh4 {[%emt 0:03:40]} Be6 {[%emt 0:02:10]} 9. Nf3 {[%emt 0:07:25]} Nbd7 {[%emt 0:02:11]} 10. O-O {[%emt 0:02:42]} c5 {[%emt 0:05:47]} 11. Rc1 {[%emt 0:12:14]} Rc8 {[%emt 0:09:16]} 12. h3 {[%emt 0:10:22]} Nh5 {[%emt 0:13:36]} 13. Bxe7 {[%emt 0:00:20]} Qxe7 {[%emt 0:00:02]} 14. Be2 {[%emt 0:08:23]} Nhf6 {[%emt 0:02:48]} 15. dxc5 {[%emt 0:02:05]} Nxc5 {[%emt 0:02:02]} 16. Nd4 {[%emt 0:00:28]} Rfd8 {[%emt 0:01:29]} 17. Bf3 {[%emt 0:16:13]} a6 {[%emt 0:16:14]} 18. Nce2 {[%emt 0:05:04]} Ncd7 {[%emt 0:08:40]} 19. Nf4 {[%emt 0:08:31]} Ne5 {[%emt 0:04:01]} 20. Qe2 {[%emt 0:02:30]} Qd7 {[%emt 0:14:10]} 21. Nd3 {[%emt 0:04:54]} Nxf3+ {[%emt 0:02:05]} 22. Qxf3 {[%emt 0:00:52]} Ne4 {[%emt 0:01:01]} 23. Qe2 {[%emt 0:04:02]} Rxc1 {[%emt 0:03:12]} 24. Rxc1 {[%emt 0:00:10]} Rc8 {[%emt 0:00:15]} 25. Rxc8+ {[%emt 0:01:08]} Qxc8 {[%emt 0:00:01]} 26. Nf4 {[%emt 0:05:16]} Qc1+ {[%emt 0:01:44]} 27. Kh2 {[%emt 0:00:08]} Qc7 {[%emt 0:00:10]} 28. Kg1 {[%emt 0:01:11]} Qc1+ {[%emt 0:00:11]} 29. Kh2 {[%emt 0:00:02]} Qc7 {[%emt 0:00:09]} 30. Ndxe6 {[%emt 0:01:09]} fxe6 {[%emt 0:00:08]} 31. Qg4 {[%emt 0:00:40]} Kh8 {[%emt 0:06:00]} 32. Qg6 {[%emt 0:01:17]} Nf6 {[%emt 0:00:20]} 1/2-1/2

[Event "Swiss Youth-ch U14 2023"]
[Site "Olten"]
[Date "2023.05.28"]
[Round "5.6"]
[White "Akinkhov, Mikhail"]
[Black "Delangle, Alexander"]
[Result "1/2-1/2"]
[ECO "D10"]
[WhiteElo "1495"]
[BlackElo "1621"]
[Annotator "NA RC"]
[PlyCount "111"]
[EventDate "2023.05.26"]
[EventType "swiss"]
[EventCountry "SUI"]
[SourceTitle "playchess.com"]
[Source "ChessBase"]
[SourceQuality "1"]
[TimeControl "5400+30"]

1. d4 {[%emt 0:00:02]} d5 {[%emt 0:00:04]} 2. c4 {[%emt 0:00:05]} c6 {[%emt 0:00:52]} 3. e3 {[%emt 0:00:17]} Bf5 {[%emt 0:02:45]} 4. Qb3 {[%emt 0:02:28]} Qc7 {[%emt 0:02:40]} 5. cxd5 {[%emt 0:01:39]} cxd5 {[%emt 0:00:42]} 6. Bb5+ {[%emt 0:04:35]} Nd7 {[%emt 0:02:33]} 7. Nc3 {[%emt 0:01:09]} e6 {[%emt 0:04:26]} 8. Bd2 {[%emt 0:01:59]} Ngf6 {[%emt 0:01:55]} 9. Rc1 {[%emt 0:01:30]} Rc8 {[%emt 0:13:49]} 10. Nf3 {[%emt 0:24:24]} Bd6 {[%emt 0:07:01]} 11. O-O {[%emt 0:02:58]} Qd8 {[%emt 0:09:06]} 12. Ne2 {[%emt 0:03:58]} O-O {[%emt 0:08:08]} 13. Rxc8 {[%emt 0:00:47]} Qxc8 {[%emt 0:00:34]} 14. Rc1 {[%emt 0:00:36]} Qd8 {[%emt 0:02:26]} 15. Bb4 {[%emt 0:06:40]} Bxb4 {[%emt 0:06:46]} 16. Qxb4 {[%emt 0:05:22]} Qb6 {[%emt 0:04:07]} 17. Qb3 {[%emt 0:03:40]} Rd8 {[%emt 0:03:24]} 18. Bxd7 {[%emt 0:04:08]} Nxd7 {[%emt 0:01:39]} 19. Qxb6 {[%emt 0:01:35]} Nxb6 {[%emt 0:00:53]} 20. Rc7 {[%emt 0:01:32]} Rd7 {[%emt 0:01:05]} 21. Rc1 {[%emt 0:01:46]} f6 {[%emt 0:01:56]} 22. b3 {[%emt 0:02:45]} Kf7 {[%emt 0:00:55]} 23. a4 {[%emt 0:02:00]} g5 {[%emt 0:01:01]} 24. a5 {[%emt 0:03:25]} Na8 {[%emt 0:00:08]} 25. Rc8 {[%emt 0:03:25]} Nc7 {[%emt 0:00:08]} 26. Nc3 {[%emt 0:02:06]} Re7 {[%emt 0:01:10]} 27. Rb8 {[%emt 0:01:36]} Ne8 {[%emt 0:02:04]} 28. Rc8 {[%emt 0:01:49]} Nd6 {[%emt 0:02:24]} 29. Rc5 {[%emt 0:01:30]} Ne4 {[%emt 0:04:18]} 30. Nxe4 {[%emt 0:01:05]} Bxe4 {[%emt 0:00:16]} 31. Kf1 {[%emt 0:04:20]} Rd7 {[%emt 0:01:13]} 32. h3 {[%emt 0:04:05]} Ke7 {[%emt 0:00:41]} 33. Ke2 {[%emt 0:01:32]} Kd6 {[%emt 0:00:28]} 34. g3 {[%emt 0:01:25]} Re7 {[%emt 0:00:59]} 35. b4 {[%emt 0:02:15]} b6 {[%emt 0:01:49]} 36. axb6 {[%emt 0:00:44]} axb6 {[%emt 0:00:04]} 37. Rc3 {[%emt 0:02:21]} Ra7 {[%emt 0:00:39]} 38. b5 {[%emt 0:00:31]} Ra2+ {[%emt 0:01:21]} 39. Nd2 {[%emt 0:00:17]} Bc2 {[%emt 0:02:27]} 40. Rc6+ {[%emt 0:00:30]} Kd7 {[%emt 0:00:41]} 41. Rxb6 {[%emt 0:00:23]} Rb2 {[%emt 0:01:18]} 42. Rb7+ {[%emt 0:00:24]} Kd6 {[%emt 0:00:41]} 43. Rb6+ {[%emt 0:00:20]} Kd7 {[%emt 0:00:12]} 44. Rb7+ {[%emt 0:00:44]} Kd6 {[%emt 0:00:36]} 45. Rb6+ {[%emt 0:00:35]} Kd7 {[%emt 0:00:36]} 46. Rb7+ {[%emt 0:00:35]} Kd6 {[%emt 0:00:32]} 47. Rf7 {[%emt 0:00:56]} Ba4 {[%emt 0:01:07]} 48. Ke1 {[%emt 0:00:46]} Bxb5 {[%emt 0:00:33]} 49. f4 {[%emt 0:00:44]} gxf4 {[%emt 0:01:04]} 50. gxf4 {[%emt 0:00:06]} Bd3 {[%emt 0:00:22]} 51. Rxf6 {[%emt 0:00:56]} Ra2 {[%emt 0:00:14]} 52. Rf7 {[%emt 0:00:32]} Ra1+ {[%emt 0:00:29]} 53. Kf2 {[%emt 0:00:02]} Ra2 {[%emt 0:00:13]} 54. Ke1 {[%emt 0:00:22]} Ra1+ {[%emt 0:00:24]} 55. Kf2 {[%emt 0:00:13]} Ra2 {[%emt 0:00:04]} 56. Ke1 {[%emt 0:02:01]} 1/2-1/2

[Event "Swiss Youth-ch U14 2023"]
[Site "Olten"]
[Date "2023.05.28"]
[Round "5.7"]
[White "Papaux, Jeremie"]
[Black "Gade, Niels Severin"]
[Result "0-1"]
[ECO "D53"]
[WhiteElo "1491"]
[BlackElo "1689"]
[Annotator "NA RC"]
[PlyCount "112"]
[EventDate "2023.05.26"]
[EventType "swiss"]
[EventCountry "SUI"]
[SourceTitle "playchess.com"]
[Source "ChessBase"]
[SourceQuality "1"]
[TimeControl "5400+30"]

1. d4 {[%emt 0:00:02]} d5 {[%emt 0:00:04]} 2. c4 {[%emt 0:00:03]} c6 {[%emt 0:00:08]} 3. Nf3 {[%emt 0:00:04]} Nf6 {[%emt 0:00:07]} 4. Nc3 {[%emt 0:00:08]} e6 {[%emt 0:00:09]} 5. Bg5 {[%emt 0:00:06]} Nbd7 {[%emt 0:00:28]} 6. e3 {[%emt 0:00:08]} Be7 {[%emt 0:00:12]} 7. Bd3 {[%emt 0:01:01]} dxc4 {[%emt 0:00:20]} 8. Bxc4 {[%emt 0:00:10]} b5 {[%emt 0:00:11]} 9. Be2 {[%emt 0:00:29]} a6 {[%emt 0:00:18]} 10. O-O {[%emt 0:00:32]} O-O {[%emt 0:00:16]} 11. Rc1 {[%emt 0:02:12]} Bb7 {[%emt 0:01:38]} 12. a3 {[%emt 0:01:56]} h6 {[%emt 0:03:29]} 13. Bh4 {[%emt 0:00:41]} c5 {[%emt 0:04:59]} 14. Na2 {[%emt 0:01:00]} Rc8 {[%emt 0:08:52]} 15. Ne5 {[%emt 0:09:57]} Nxe5 {[%emt 0:05:16]} 16. dxe5 {[%emt 0:00:21]} Nd5 {[%emt 0:01:06]} 17. Bxe7 {[%emt 0:00:21]} Qxe7 {[%emt 0:00:16]} 18. Nc3 {[%emt 0:03:15]} Rfd8 {[%emt 0:01:25]} 19. Qc2 {[%emt 0:00:52]} Nxc3 {[%emt 0:02:43]} 20. Qxc3 {[%emt 0:01:06]} b4 {[%emt 0:01:34]} 21. Qb3 {[%emt 0:10:39]} Qg5 {[%emt 0:01:19]} 22. g3 {[%emt 0:03:53]} Qxe5 {[%emt 0:01:03]} 23. f4 {[%emt 0:01:08]} Qd6 {[%emt 0:03:28]} 24. Rcd1 {[%emt 0:05:58]} Qb6 {[%emt 0:01:32]} 25. Bc4 {[%emt 0:07:33]} Qc6 {[%emt 0:01:40]} 26. Bd5 {[%emt 0:05:44]} Rxd5 {[%emt 0:01:11]} 27. Rxd5 {[%emt 0:00:55]} Qxd5 {[%emt 0:00:21]} 28. Qxd5 {[%emt 0:00:10]} Bxd5 {[%emt 0:00:12]} 29. Rc1 {[%emt 0:00:23]} bxa3 {[%emt 0:00:11]} 30. bxa3 {[%emt 0:00:09]} c4 {[%emt 0:00:17]} 31. Kf2 {[%emt 0:00:24]} c3 {[%emt 0:00:26]} 32. Ke2 {[%emt 0:00:06]} Be4 {[%emt 0:00:09]} 33. a4 {[%emt 0:00:41]} c2 {[%emt 0:00:16]} 34. Kd2 {[%emt 0:00:10]} Rb8 {[%emt 0:01:19]} 35. Rg1 {[%emt 0:01:01]} Rb1 {[%emt 0:00:13]} 36. Rc1 {[%emt 0:00:09]} Rxc1 {[%emt 0:00:12]} 37. Kxc1 {[%emt 0:00:06]} f5 {[%emt 0:00:06]} 38. a5 {[%emt 0:00:09]} Kf8 {[%emt 0:00:08]} 39. h3 {[%emt 0:00:01]} Ke7 {[%emt 0:00:06]} 40. g4 {[%emt 0:00:06]} g6 {[%emt 0:00:18]} 41. g5 {[%emt 0:00:14]} h5 {[%emt 0:00:17]} 42. h4 {[%emt 0:00:07]} Kd6 {[%emt 0:00:08]} 43. Kd2 {[%emt 0:00:02]} Kc5 {[%emt 0:00:19]} 44. Kc1 {[%emt 0:00:07]} Kb5 {[%emt 0:00:11]} 45. Kb2 {[%emt 0:00:07]} Kxa5 {[%emt 0:00:27]} 46. Kc3 {[%emt 0:00:38]} c1=Q+ {[%emt 0:00:21]} 47. Kd4 {[%emt 0:00:03]} Qc8 {[%emt 0:02:19]} 48. Ke5 {[%emt 0:00:18]} Qe8 {[%emt 0:00:29]} 49. Kf6 {[%emt 0:00:10]} Kb5 {[%emt 0:00:30]} 50. Ke5 {[%emt 0:00:17]} Kc5 {[%emt 0:00:14]} 51. Kf6 {[%emt 0:00:03]} a5 {[%emt 0:00:33]} 52. Ke5 {[%emt 0:00:19]} a4 {[%emt 0:00:04]} 53. Kf6 {[%emt 0:00:05]} a3 {[%emt 0:00:05]} 54. Kg7 {[%emt 0:00:09]} a2 {[%emt 0:00:05]} 55. Kh6 {[%emt 0:00:11]} a1=Q {[%emt 0:00:15]} 56. Kh7 {[%emt 0:00:09]} Qah8# {[%emt 0:00:06]} 0-1

[Event "Swiss Youth-ch U14 2023"]
[Site "Olten"]
[Date "2023.05.28"]
[Round "5.8"]
[White "Gafner, Lancelot"]
[Black "Van Aepelen, Nikolai"]
[Result "1/2-1/2"]
[ECO "B12"]
[WhiteElo "1641"]
[BlackElo "1623"]
[Annotator "NA RC"]
[PlyCount "70"]
[EventDate "2023.05.26"]
[EventType "swiss"]
[EventCountry "SUI"]
[SourceTitle "playchess.com"]
[Source "ChessBase"]
[SourceQuality "1"]
[TimeControl "5400+30"]

1. e4 {[%emt 0:00:15]} c6 {[%emt 0:00:14]} 2. d4 {[%emt 0:01:16]} d5 {[%emt 0:00:08]} 3. e5 {[%emt 0:00:09]} c5 {[%emt 0:00:10]} 4. dxc5 {[%emt 0:00:07]} Nc6 {[%emt 0:00:12]} 5. Bb5 {[%emt 0:00:14]} e6 {[%emt 0:01:54]} 6. Be3 {[%emt 0:00:51]} Bd7 {[%emt 0:00:32]} 7. Bxc6 {[%emt 0:00:18]} Bxc6 {[%emt 0:01:09]} 8. Nf3 {[%emt 0:04:32]} Ne7 {[%emt 0:06:33]} 9. c3 {[%emt 0:00:09]} a5 {[%emt 0:01:37]} 10. O-O {[%emt 0:11:42]} Ng6 {[%emt 0:00:52]} 11. Qd4 {[%emt 0:16:12]} Be7 {[%emt 0:03:14]} 12. b4 {[%emt 0:05:01]} O-O {[%emt 0:05:10]} 13. a3 {[%emt 0:05:33]} Bb5 {[%emt 0:00:36]} 14. Re1 {[%emt 0:00:44]} h6 {[%emt 0:00:41]} 15. Nbd2 {[%emt 0:09:33]} axb4 {[%emt 0:06:55]} 16. cxb4 {[%emt 0:02:24]} Qd7 {[%emt 0:02:42]} 17. Ra2 {[%emt 0:02:28]} Rfc8 {[%emt 0:03:18]} 18. Nb3 {[%emt 0:04:23]} Ra6 {[%emt 0:05:46]} 19. Bc1 {[%emt 0:05:33]} b6 {[%emt 0:14:38]} 20. cxb6 {[%emt 0:07:19]} Rc4 {[%emt 0:00:45]} 21. Qd2 {[%emt 0:00:55]} Rxb6 {[%emt 0:03:16]} 22. Na5 {[%emt 0:02:07]} Rc8 {[%emt 0:03:53]} 23. Rc2 {[%emt 0:02:43]} Rbb8 {[%emt 0:01:43]} 24. Bb2 {[%emt 0:00:56]} Ba4 {[%emt 0:06:20]} 25. Rxc8+ {[%emt 0:00:28]} Rxc8 {[%emt 0:00:15]} 26. Rc1 {[%emt 0:00:28]} Bd8 {[%emt 0:00:47]} 27. Rxc8 {[%emt 0:04:45]} Qxc8 {[%emt 0:00:21]} 28. Qc3 {[%emt 0:00:29]} Qxc3 {[%emt 0:01:15]} 29. Bxc3 {[%emt 0:00:08]} Bxa5 {[%emt 0:00:11]} 30. bxa5 {[%emt 0:00:03]} Bb5 {[%emt 0:00:03]} 31. Nd4 {[%emt 0:00:25]} Bc4 {[%emt 0:01:08]} 32. Nc6 {[%emt 0:00:46]} Nf4 {[%emt 0:01:05]} 33. Nd4 {[%emt 0:05:52]} Kf8 {[%emt 0:02:06]} 34. g3 {[%emt 0:00:41]} Ne2+ {[%emt 0:03:15]} 35. Nxe2 {[%emt 0:08:31]} Kg8 {[%emt 0:25:16]} 1/2-1/2